fUSD/lending_fUSD_20260427
["ID","MTS","AMOUNT","RATE_DAILY","PERIOD"]
[421200876,1777237833025,-500.0,8.595e-05,2]
[421200877,1777237833034,-500.0,8.595e-05,2]
[421200878,1777237833043,-500.0,8.595e-05,2]
[421200879,1777237833053,-500.0,8.595e-05,2]
[421200880,1777237833062,-500.0,8.595e-05,2]
[421200881,1777237833072,-500.0,8.595e-05,2]
[421200882,1777237833080,-530.75737765,8.595e-05,2]
[421200883,1777237833090,-500.0,8.595e-05,2]
[421200884,1777237833099,-500.0,8.595e-05,2]
[421200885,1777237833108,-500.0,8.595e-05,2]
[421200886,1777237833118,-500.0,8.595e-05,2]
[421200887,1777237833127,-500.0,8.595e-05,2]
[421200888,1777237833137,-500.0,8.595e-05,2]
[421200889,1777237833147,-500.0,8.595e-05,2]
[421200890,1777237833156,-500.0,8.595e-05,2]
[421200891,1777237833166,-500.0,8.595e-05,2]
[421200892,1777237833175,-500.0,8.595e-05,2]
[421200893,1777237833184,-500.0,8.595e-05,2]
[421200894,1777237833194,-500.0,8.595e-05,2]
[421200895,1777237833203,-500.0,8.595e-05,2]
[421200896,1777237833214,-500.0,8.595e-05,2]
[421200897,1777237833223,-500.0,8.595e-05,2]
[421200898,1777237833233,-500.0,8.595e-05,2]
[421200899,1777237833244,-500.0,8.595e-05,2]
[421200900,1777237833253,-208510.3310336,8.596e-05,2]
[421200901,1777237833267,-75473.93399252,8.596e-05,2]
[421200902,1777237833278,-26392.06732662,8.596e-05,2]
[421200903,1777237833290,-28903.80023219,8.596e-05,2]
[421200904,1777237833319,-2631.90040632,8.596e-05,2]
[421200905,1777237833331,-1500.36,8.596e-05,2]
[421200906,1777237833342,-18760.55878155,8.596e-05,2]
[421200907,1777237833361,-1246.48,8.596e-05,2]
[421200908,1777237833372,-755.08584345,8.596e-05,2]
[421200923,1777237838193,-1170.75638054,8.596e-05,2]
[421200925,1777237838252,-44603.35914167,8.596e-05,2]
[421200926,1777237838353,-2257.08759166,8.596e-05,2]
[421200927,1777237838367,-1466.38808259,8.596e-05,2]
[421200928,1777237838381,-1812.40059212,8.596e-05,2]
[421200937,1777237840231,-292.72099647,8.596e-05,2]
[421200949,1777237840336,-7721.94853633,8.596e-05,2]
[421200957,1777237840390,-781.06101906,8.596e-05,2]
[421200959,1777237840404,-841.32537723,8.596e-05,2]
[421200965,1777237840447,-2387.0,8.596e-05,2]
[421200967,1777237840460,-77623.60327703,8.596e-05,2]
[421201011,1777237843312,-9080.52846166,8.596e-05,2]
[421201012,1777237843329,-1030.1308482,8.596e-05,2]
[421201013,1777237843344,-1772.92596407,8.596e-05,2]
[421201014,1777237843359,-3101.36321665,8.596e-05,2]
[421201015,1777237843415,-561.92568105,8.596e-05,2]
[421201016,1777237843431,-2343.68669856,8.596e-05,2]
[421201017,1777237843445,-3899.17887732,8.596e-05,2]
[421201018,1777237843461,-997.41786555,8.596e-05,2]
[421201019,1777237843496,-232381.96967874,8.596e-05,2]
[421201020,1777237843511,-4307.74967549,8.596e-05,2]
[421201021,1777237843538,-764.86434579,8.596e-05,2]
[421201022,1777237843552,-19686.67525817,8.596e-05,2]
[421201023,1777237843577,-743.33980056,8.596e-05,2]
[421201024,1777237846305,-500.0,8.595e-05,2]
[421201025,1777237846315,-12971.64648594,8.596e-05,2]
[421201028,1777237848372,-6106.53102283,8.596e-05,2]
[421201029,1777237848395,-3478.7,8.596e-05,2]
[421201030,1777237848408,-626.20540277,8.596e-05,2]
[421201031,1777237848421,-929.79883095,8.596e-05,2]
[421201032,1777237848433,-2430.59892602,8.596e-05,2]
[421201033,1777237848444,-1622.63198,8.596e-05,2]
[421201034,1777237848455,-845.0235,8.596e-05,2]
[421201035,1777237848467,-1614.468702,8.596e-05,2]
[421201036,1777237848479,-12082.63198494,8.596e-05,2]
[421201058,1777239032434,-613.67207983,7.7e-05,2]
[421201060,1777239032447,-1686.32792017,7.7e-05,2]
[421201062,1777239032458,-250.0,7.709e-05,2]
[421201063,1777239032468,-200.0,7.717e-05,2]
[421201064,1777239032478,-1200.0,7.717e-05,2]
[421201066,1777239032488,-152.3426254,7.718e-05,2]
[421201068,1777239032499,-150.0,7.718e-05,2]
[421201070,1777239032509,-150.0,7.718e-05,2]
[421201072,1777239032520,-150.0,7.718e-05,2]
[421201075,1777239032530,-150.0,7.718e-05,2]
[421201076,1777239032541,-150.0,7.718e-05,2]
[421201077,1777239032552,-150.0,7.718e-05,2]
[421201078,1777239032562,-257.26616216,7.718e-05,2]
[421201079,1777239032572,-150.0,7.718e-05,2]
[421201080,1777239032582,-4700.0,7.8e-05,2]
[421201081,1777239032593,-150.0,7.861e-05,2]
[421201082,1777239032604,-7100.0,7.9e-05,2]
[421201083,1777239032614,-2943.63570663,8e-05,2]
[421201084,1777239032627,-6556.36429337,8e-05,2]
[421201085,1777239032638,-150.0,8.004e-05,2]
[421201086,1777239032648,-150.0,8.147e-05,2]
[421201087,1777239032658,-150.0,8.147e-05,2]
[421201088,1777239032668,-150.0,8.147e-05,2]
[421201089,1777239032678,-150.0,8.147e-05,2]
[421201090,1777239032689,-453.44,8.2e-05,2]
[421201091,1777239032699,-150.0,8.218e-05,2]
[421201092,1777239032709,-150.0,8.219e-05,2]
[421201093,1777239032719,-150.0,8.219e-05,2]
[421201094,1777239032730,-150.0,8.219e-05,2]
[421201095,1777239032741,-150.0,8.219e-05,2]
[421201096,1777239032751,-176.27925153,8.219e-05,2]
[421201097,1777239032762,-150.0,8.219e-05,2]
[421201098,1777239032775,-187.29416377,8.219e-05,2]
[421201099,1777239032786,-556.0,8.219e-05,2]
[421201100,1777239032797,-556.0,8.219e-05,2]
[421201102,1777239032807,-556.0,8.219e-05,2]
[421201103,1777239032819,-556.0,8.219e-05,2]
[421201104,1777239032831,-556.0,8.219e-05,2]
[421201105,1777239032841,-556.0,8.219e-05,2]
[421201106,1777239032851,-556.0,8.219e-05,2]
[421201108,1777239032862,-556.0,8.219e-05,2]
[421201121,1777239032872,-556.0,8.219e-05,2]
[421201122,1777239033965,-556.0,8.219e-05,2]
[421201123,1777239033998,-556.0,8.219e-05,2]
[421201124,1777239034017,-556.0,8.219e-05,2]
[421201125,1777239034026,-556.0,8.219e-05,2]
[421201126,1777239034035,-556.0,8.219e-05,2]
[421201127,1777239034045,-556.0,8.219e-05,2]
[421201128,1777239034055,-556.0,8.219e-05,2]
[421201129,1777239034067,-556.0,8.219e-05,2]
[421201130,1777239034077,-556.0,8.219e-05,2]
[421201131,1777239034086,-556.0,8.219e-05,2]
[421201132,1777239034097,-556.0,8.219e-05,2]
[421201133,1777239034106,-556.0,8.219e-05,2]
[421201134,1777239034116,-556.0,8.219e-05,2]
[421201135,1777239034126,-556.0,8.219e-05,2]
[421201136,1777239034135,-556.0841951,8.219e-05,2]
[421201137,1777239034144,-421.39,8.219e-05,2]
[421201138,1777239034154,-500.0,8.219e-05,2]
[421201139,1777239034164,-500.0,8.219e-05,2]
[421201140,1777239034175,-500.0,8.219e-05,2]
[421201141,1777239034184,-500.0,8.219e-05,2]
[421201142,1777239034193,-500.0,8.219e-05,2]
[421201143,1777239034203,-500.0,8.219e-05,2]
[421201144,1777239034212,-500.0,8.219e-05,2]
[421201145,1777239034221,-500.0,8.219e-05,2]
[421201146,1777239034232,-500.0,8.219e-05,2]
[421201147,1777239034242,-500.0,8.219e-05,2]
[421201148,1777239034251,-500.0,8.219e-05,2]
[421201149,1777239034260,-500.0,8.219e-05,2]
[421201150,1777239034270,-500.0,8.219e-05,2]
[421201151,1777239034279,-500.0,8.219e-05,2]
[421201152,1777239034288,-294.40889852,8.219e-05,2]
[421201153,1777239034297,-500.0,8.219e-05,2]
[421201154,1777239034307,-150.0,8.219e-05,2]
[421201155,1777239034316,-500.0,8.219e-05,2]
[421201156,1777239034324,-500.0,8.219e-05,2]
[421201157,1777239034334,-500.0,8.219e-05,2]
[421201158,1777239034343,-500.0,8.219e-05,2]
[421201159,1777239034352,-534.01308303,8.219e-05,2]
[421201160,1777239034362,-500.0,8.219e-05,2]
[421201161,1777239034371,-500.0,8.219e-05,2]
[421201162,1777239034380,-500.0,8.219e-05,2]
[421201163,1777239034390,-500.0,8.219e-05,2]
[421201164,1777239034399,-500.0,8.219e-05,2]
[421201165,1777239034409,-500.0,8.219e-05,2]
[421201166,1777239034418,-500.0,8.219e-05,2]
[421201167,1777239034427,-500.0,8.219e-05,2]
[421201168,1777239034437,-150.0,8.219e-05,2]
[421201169,1777239034446,-500.0,8.219e-05,2]
[421201170,1777239034455,-385.31490086,8.219e-05,2]
[421201171,1777239034464,-150.0,8.219e-05,2]
[421201172,1777239034474,-246.48731337,8.219e-05,2]
[421201173,1777239034483,-500.0,8.219e-05,2]
[421201174,1777239034492,-150.0,8.219e-05,2]
[421201175,1777239034501,-535.9698256,8.219e-05,2]
[421201176,1777239034510,-150.0,8.219e-05,2]
[421201177,1777239034520,-288.32213193,8.219e-05,2]
[421201178,1777239034528,-500.0,8.219e-05,2]
[421201179,1777239034537,-500.0,8.219e-05,2]
[421201180,1777239034546,-444.67343688,8.219e-05,2]
[421201181,1777239034556,-280.0,8.219e-05,2]
[421201182,1777239034565,-500.0,8.219e-05,2]
[421201183,1777239034574,-169.73496481,8.22e-05,2]
[421201184,1777239034583,-500.0,8.22e-05,2]
[421201185,1777239034592,-360.70041349,8.22e-05,2]
[421201186,1777239034601,-500.0,8.22e-05,2]
[421201187,1777239034610,-500.0,8.22e-05,2]
[421201188,1777239034620,-500.0,8.22e-05,2]
[421201189,1777239034629,-500.0,8.22e-05,2]
[421201190,1777239034638,-500.0,8.22e-05,2]
[421201191,1777239034647,-374.14270157,8.22e-05,2]
[421201192,1777239034656,-463.13105952,8.22e-05,2]
[421201193,1777239034665,-500.0,8.22e-05,2]
[421201194,1777239034674,-500.0,8.22e-05,2]
[421201195,1777239034683,-500.0,8.22e-05,2]
[421201196,1777239034692,-500.21639444,8.22e-05,2]
[421201197,1777239034701,-649.20145134,8.22e-05,2]
[421201198,1777239034710,-500.0,8.22e-05,2]
[421201199,1777239034719,-339.39259701,8.22e-05,2]
[421201200,1777239034729,-500.0,8.22e-05,2]
[421201201,1777239034738,-500.0,8.22e-05,2]
[421201202,1777239034747,-500.0,8.22e-05,2]
[421201203,1777239034756,-500.0,8.22e-05,2]
[421201204,1777239034765,-500.0,8.22e-05,2]
[421201205,1777239034774,-214.17679047,8.22e-05,2]
[421201206,1777239034783,-500.0,8.22e-05,2]
[421201207,1777239034792,-500.0,8.22e-05,2]
[421201208,1777239034801,-500.0,8.22e-05,2]
[421201209,1777239034811,-500.0,8.22e-05,2]
[421201210,1777239034819,-500.0,8.22e-05,2]
[421201211,1777239034828,-500.0,8.22e-05,2]
[421201212,1777239034837,-500.0,8.22e-05,2]
[421201213,1777239034846,-500.0,8.22e-05,2]
[421201214,1777239034856,-500.0,8.22e-05,2]
[421201215,1777239034866,-500.0,8.22e-05,2]
[421201216,1777239034875,-500.0,8.22e-05,2]
[421201217,1777239034884,-500.0,8.22e-05,2]
[421201218,1777239034894,-500.0,8.22e-05,2]
[421201219,1777239034903,-500.0,8.22e-05,2]
[421201220,1777239034912,-500.0,8.22e-05,2]
[421201221,1777239034921,-500.0,8.22e-05,2]
[421201222,1777239034930,-500.0,8.22e-05,2]
[421201223,1777239034939,-500.0,8.22e-05,2]
[421201224,1777239034947,-500.0,8.22e-05,2]
[421201225,1777239034958,-500.0,8.22e-05,2]
[421201226,1777239034968,-500.0,8.22e-05,2]
[421201227,1777239034977,-500.0,8.22e-05,2]
[421201228,1777239034987,-500.0,8.22e-05,2]
[421201229,1777239034996,-500.0,8.22e-05,2]
[421201230,1777239035006,-500.0,8.22e-05,2]
[421201231,1777239035016,-500.0,8.22e-05,2]
[421201232,1777239035027,-500.0,8.22e-05,2]
[421201233,1777239035037,-500.0,8.22e-05,2]
[421201234,1777239035054,-500.0,8.22e-05,2]
[421201235,1777239035064,-500.0,8.22e-05,2]
[421201236,1777239035074,-500.0,8.22e-05,2]
[421201237,1777239035083,-198.07573778,8.22e-05,2]
[421201238,1777239035092,-500.0,8.22e-05,2]
[421201239,1777239035101,-500.0,8.22e-05,2]
[421201240,1777239035111,-500.0,8.22e-05,2]
[421201241,1777239035121,-500.0,8.22e-05,2]
[421201242,1777239035131,-500.0,8.22e-05,2]
[421201243,1777239035140,-350.0,8.22e-05,2]
[421201244,1777239035151,-500.0,8.22e-05,2]
[421201245,1777239035160,-500.0,8.22e-05,2]
[421201246,1777239035169,-500.0,8.22e-05,2]
[421201247,1777239035178,-500.0,8.22e-05,2]
[421201248,1777239035187,-500.0,8.22e-05,2]
[421201249,1777239035196,-500.0,8.22e-05,2]
[421201250,1777239035206,-250.0,8.22e-05,2]
[421201251,1777239035215,-57967.27329219,8.221e-05,2]
[421201252,1777239035991,-1263.98453803,8.221e-05,2]
[421201253,1777239036006,-440.0,8.221e-05,2]
[421201254,1777239036017,-27523.34214685,8.221e-05,2]
[421201255,1777239036038,-603.84235597,8.221e-05,2]
[421201256,1777239036049,-351.5299975,8.221e-05,2]
[421201257,1777239036060,-6226.43661,8.221e-05,2]
[421201258,1777239036071,-25795.283639,8.221e-05,2]
[421201259,1777239036082,-317.81348446,8.221e-05,2]
[421201260,1777239036093,-478.50807902,8.221e-05,2]
[421201261,1777239036129,-37696.16728377,8.221e-05,2]
[421201265,1777239038509,-2098.95,8.221e-05,2]
[421201266,1777239038565,-4810.94195086,8.221e-05,2]
[421201267,1777239038578,-1513.16049576,8.221e-05,2]
[421201268,1777239038591,-9346.62959513,8.221e-05,2]
[421201269,1777239038785,-796.55986639,8.221e-05,2]
[421201270,1777239038797,-3596.22805072,8.221e-05,2]
[421201271,1777239038808,-20955.83799274,8.221e-05,2]
[421201272,1777239038848,-4934.206548,8.221e-05,2]
[421201281,1777239040833,-152114.38515578,8.221e-05,2]
[421201282,1777239040845,-16337.6022456,8.221e-05,2]
[421201283,1777239040891,-972.98655423,8.221e-05,2]
[421201284,1777239040951,-14884.2815429,8.221e-05,2]
[421201285,1777239040962,-390.204,8.221e-05,2]
[421201286,1777239041005,-475.80353924,8.221e-05,2]
[421201287,1777239041017,-651.98732006,8.221e-05,2]
[421201288,1777239041065,-1135.96567531,8.221e-05,2]
[421201289,1777239041078,-1012.13922078,8.221e-05,2]
[421201290,1777239041089,-2316.90688967,8.221e-05,2]
[421201291,1777239041100,-1819.1209591,8.221e-05,2]
[421201292,1777239041136,-1121.19194114,8.221e-05,2]
[421201293,1777239041151,-83231.823612,8.221e-05,2]
[421201294,1777239041162,-36884.8876836,8.221e-05,2]
[421201295,1777239041174,-504.28224,8.221e-05,2]
[421201327,1777239043501,-7497.54564869,8.221e-05,2]
[421201328,1777239043557,-299.05758889,8.221e-05,2]
[421201329,1777239043613,-4051.58577808,8.221e-05,2]
[421201330,1777239043625,-500.0,8.221e-05,2]
[421201331,1777239043671,-5700.45216036,8.221e-05,2]
[421201332,1777239043682,-1393.35230476,8.221e-05,2]
[421201333,1777239043890,-341.04,8.221e-05,2]
[421201372,1777239047392,-66465.83024595,8.221e-05,2]
[421201374,1777239047404,-651.98542784,8.221e-05,2]
[421201381,1777239047460,-494.61771879,8.221e-05,2]
[421201389,1777239047525,-39101.34391089,8.221e-05,2]
[421201397,1777239047587,-21762.28695369,8.221e-05,2]
[421201399,1777239047599,-65000.0,8.221e-05,2]
[421201401,1777239047611,-84718.26109177,8.221e-05,2]
[421201402,1777239047623,-4534.85779296,8.221e-05,2]
[421201430,1777239109130,233.08364032,0.0003287,120]
[421201431,1777239111175,292.0,0.0003287,120]
[421201432,1777239258282,500.0,0.0003287,120]
[421201434,1777239412087,500.0,0.00032541,120]
[421201435,1777239448767,250.0,0.0003287,120]
[421201436,1777239449137,250.0,0.0003287,120]
[421201437,1777239449939,250.0,0.0003287,120]
[421201438,1777239450367,250.86,0.0003287,120]
[421201440,1777239957321,150.0,7.08e-05,2]
[421201441,1777240146339,228.59,7.106e-05,2]
[421201443,1777240177055,1000.0,0.00032876,120]
[421201453,1777240231691,-166.62555251,7.299e-05,2]
[421201454,1777240231701,-150.0,7.299e-05,2]
[421201455,1777240231711,-150.0,7.299e-05,2]
[421201456,1777240231722,-150.0,7.299e-05,2]
[421201457,1777240231733,-150.0,7.299e-05,2]
[421201458,1777240231742,-150.0,7.299e-05,2]
[421201459,1777240231752,-150.0,7.299e-05,2]
[421201460,1777240231762,-250.0,7.309e-05,2]
[421201461,1777240231771,-150.0,7.32e-05,2]
[421201462,1777240231781,-1200.0,7.34e-05,2]
[421201463,1777240231791,-150.0,7.341e-05,2]
[421201464,1777240231801,-150.0,7.363e-05,2]
[421201465,1777240231810,-150.0,7.384e-05,2]
[421201466,1777240231821,-150.0,7.405e-05,2]
[421201467,1777240231831,-150.0,7.427e-05,2]
[421201468,1777240231841,-150.0,7.439e-05,2]
[421201469,1777240231851,-150.0,7.448e-05,2]
[421201470,1777240231861,-150.0,7.461e-05,2]
[421201471,1777240231871,-150.0,7.469e-05,2]
[421201472,1777240231880,-150.0,7.491e-05,2]
[421201473,1777240231892,-150.0,7.501e-05,2]
[421201474,1777240231903,-150.0,7.512e-05,2]
[421201475,1777240231914,-150.0,7.533e-05,2]
[421201476,1777240231924,-150.0,7.555e-05,2]
[421201477,1777240231935,-300.0,7.567e-05,2]
[421201478,1777240231944,-300.0,7.567e-05,2]
[421201479,1777240231954,-1197.0,7.568e-05,2]
[421201480,1777240231963,-150.0,7.569e-05,2]
[421201481,1777240231973,-300.0,7.575e-05,2]
[421201482,1777240231983,-150.0,7.576e-05,2]
[421201483,1777240231993,-150.0,7.597e-05,2]
[421201484,1777240232002,-150.0,7.619e-05,2]
[421201485,1777240232012,-150.0,7.623e-05,2]
[421201486,1777240232022,-150.0,7.64e-05,2]
[421201487,1777240232031,-150.0,7.661e-05,2]
[421201488,1777240232042,-150.0,7.683e-05,2]
[421201489,1777240232051,-150.0,7.683e-05,2]
[421201490,1777240232061,-150.0,7.704e-05,2]
[421201492,1777240232070,-150.0,7.704e-05,2]
[421201494,1777240232079,-150.0,7.704e-05,2]
[421201496,1777240232089,-150.0,7.704e-05,2]
[421201498,1777240232098,-150.0,7.725e-05,2]
[421201499,1777240232108,-150.0,7.747e-05,2]
[421201500,1777240232117,-150.0,7.768e-05,2]
[421201501,1777240232127,-150.0,7.785e-05,2]
[421201502,1777240232136,-150.0,7.789e-05,2]
[421201503,1777240232146,-1100.0,7.8e-05,2]
[421201504,1777240232156,-150.0,7.811e-05,2]
[421201505,1777240232166,-150.0,7.832e-05,2]
[421201506,1777240232175,-150.0,7.839e-05,2]
[421201507,1777240232185,-150.0,7.853e-05,2]
[421201508,1777240232194,-150.0,7.875e-05,2]
[421201509,1777240232204,-150.0,7.883e-05,2]
[421201510,1777240232213,-150.0,7.883e-05,2]
[421201511,1777240232223,-150.0,7.896e-05,2]
[421201512,1777240232233,-599.58080066,7.9e-05,2]
[421201513,1777240232246,-1700.41919934,7.9e-05,2]
[421201514,1777240232255,-150.0,7.907e-05,2]
[421201515,1777240232265,-150.0,7.918e-05,2]
[421201516,1777240232276,-150.0,7.939e-05,2]
[421201517,1777240232287,-150.0,7.947e-05,2]
[421201518,1777240232298,-5125.027,7.958e-05,2]
[421201519,1777240232309,-465.532,7.958e-05,2]
[421201520,1777240232319,-150.0,7.96e-05,2]
[421201521,1777240232330,-150.0,7.982e-05,2]
[421201522,1777240232340,-3500.0,8e-05,2]
[421201523,1777240232360,-150.0,8.003e-05,2]
[421201524,1777240232370,-6786.3412,8.02e-05,2]
[421201525,1777240232381,-2286.0894,8.02e-05,2]
[421201526,1777240232392,-13567.20224818,8.021e-05,2]
[421201527,1777240232419,-740.01793856,8.021e-05,2]
[421201528,1777240232430,-34133.83461326,8.021e-05,2]
[421201529,1777240232440,-150.0,8.024e-05,2]
[421201530,1777240232450,-250.0,8.028e-05,2]
[421201531,1777240232460,-250.0,8.028e-05,2]
[421201532,1777240232470,-150.0,8.046e-05,2]
[421201533,1777240232480,-150.0,8.067e-05,2]
[421201534,1777240232490,-1680.0,8.074e-05,2]
[421201535,1777240232500,-150.0,8.088e-05,2]
[421201536,1777240232512,-226.31,8.1e-05,2]
[421201537,1777240232523,-278.83248566,8.11e-05,2]
[421201538,1777240232534,-193.59595072,8.11e-05,2]
[421201539,1777240232544,-289.76414614,8.11e-05,2]
[421201540,1777240232555,-213.97855896,8.11e-05,2]
[421201541,1777240232566,-262.64773088,8.11e-05,2]
[421201542,1777240232577,-258.60354855,8.11e-05,2]
[421201543,1777240232588,-500.0,8.119e-05,2]
[421201544,1777240232599,-218.52500922,8.119e-05,2]
[421201545,1777240232608,-500.0,8.119e-05,2]
[421201546,1777240232619,-500.0,8.119e-05,2]
[421201547,1777240232629,-500.0,8.119e-05,2]
[421201548,1777240232639,-500.0,8.119e-05,2]
[421201549,1777240232649,-500.0,8.119e-05,2]
[421201550,1777240232659,-500.0,8.119e-05,2]
[421201551,1777240232672,-190.0,8.119e-05,2]
[421201552,1777240232683,-500.0,8.119e-05,2]
[421201553,1777240232694,-500.0,8.119e-05,2]
[421201554,1777240232704,-500.0,8.119e-05,2]
[421201555,1777240232714,-500.0,8.119e-05,2]
[421201556,1777240232724,-500.0,8.119e-05,2]
[421201557,1777240232734,-361.96263235,8.119e-05,2]
[421201558,1777240232744,-326.09631732,8.119e-05,2]
[421201559,1777240232754,-250.0,8.119e-05,2]
[421201560,1777240232764,-89705.93864834,8.12e-05,2]
[421201561,1777240232777,-343.32323318,8.12e-05,2]
[421201562,1777240232789,-760.53387813,8.12e-05,2]
[421201565,1777240238035,-366.315297,8.12e-05,2]
[421201581,1777240240022,-185022.3014832,8.12e-05,2]
[421201582,1777240240322,-95264.19762427,8.12e-05,2]
[421201583,1777240240362,-277.33760372,8.12e-05,2]
[421201584,1777240240376,-3693.67181135,8.12e-05,2]
[421201585,1777240240425,-23921.5,8.12e-05,2]
[421201661,1777240247824,-410809.48279612,8.12e-05,2]
[421201662,1777240247837,-3271.88970174,8.12e-05,2]
[421201663,1777240247881,-57740.4330379,8.12e-05,2]
[421201664,1777240247935,-335.819307,8.12e-05,2]
[421201665,1777240247946,-13106.98519282,8.12e-05,2]
[421201666,1777240247958,-1118.36638226,8.12e-05,2]
[421201667,1777240247970,-3901.9438474,8.12e-05,2]
[421201668,1777240248105,-363.63506,8.12e-05,2]
[421201669,1777240248153,-17980.68747535,8.12e-05,2]
[421201670,1777240248209,-11308.50907733,8.12e-05,2]
[421201672,1777240248265,-5263.80706705,8.12e-05,2]
[421201673,1777240248278,-450.40932277,8.12e-05,2]
[421201674,1777240248291,-517.2592819,8.12e-05,2]
[421201675,1777240248321,-7267.15824403,8.12e-05,2]
[421201742,1777240420813,307.0,0.0003287,120]
[421201743,1777240429851,10000.0,0.00032877,120]
[421201744,1777240449226,1590.81,0.00032877,120]
[421201745,1777240788306,208.0,0.0003287,120]
[421201750,1777240856758,500.0,0.00032541,120]
[421201752,1777241025774,441.0,0.0003287,120]
[421201753,1777241035155,850.0,0.00032876,120]
[421201754,1777241102512,150.0,7.126e-05,2]
[421201755,1777241105711,150.0,7.126e-05,2]
[421201756,1777241107049,150.0,7.126e-05,2]
[421201757,1777241112459,289.76414613,7.126e-05,2]
[421201758,1777241114531,150.0,6.912e-05,2]
[421201759,1777241123348,150.0,7.126e-05,2]
[421201760,1777241123570,150.0,7.126e-05,2]
[421201844,1777241432174,-150.0,7.152e-05,2]
[421201845,1777241432185,-250.0,7.166e-05,2]
[421201846,1777241432194,-150.0,7.179e-05,2]
[421201847,1777241432204,-271.31322953,7.194e-05,2]
[421201848,1777241432214,-226.31,7.2e-05,2]
[421201849,1777241432224,-150.0,7.205e-05,2]
[421201850,1777241432234,-150.0,7.232e-05,2]
[421201851,1777241432244,-150.0,7.258e-05,2]
[421201852,1777241432253,-150.0,7.284e-05,2]
[421201853,1777241432263,-150.0,7.284e-05,2]
[421201854,1777241432273,-150.0,7.311e-05,2]
[421201855,1777241432284,-86.07939789,7.337e-05,2]
[421201857,1777241432299,-63.92060211,7.337e-05,2]
[421201859,1777241432309,-150.0,7.364e-05,2]
[421201861,1777241432319,-150.0,7.39e-05,2]
[421201862,1777241432328,-150.0,7.39e-05,2]
[421201863,1777241432338,-67.45358669,7.4e-05,2]
[421201864,1777241432349,-158.85641331,7.4e-05,2]
[421201866,1777241432358,-150.0,7.416e-05,2]
[421201868,1777241432368,-150.0,7.443e-05,2]
[421201870,1777241432377,-150.0,7.443e-05,2]
[421201873,1777241432387,-150.0,7.469e-05,2]
[421201875,1777241432396,-150.0,7.496e-05,2]
[421201877,1777241432405,-150.0,7.522e-05,2]
[421201879,1777241432414,-150.0,7.522e-05,2]
[421201881,1777241432424,-150.0,7.548e-05,2]
[421201883,1777241432433,-150.0,7.575e-05,2]
[421201885,1777241432442,-150.0,7.601e-05,2]
[421201887,1777241432452,-150.0,7.601e-05,2]
[421201888,1777241432462,-150.0,7.627e-05,2]
[421201889,1777241432471,-150.0,7.654e-05,2]
[421201890,1777241432481,-150.0,7.654e-05,2]
[421201891,1777241432490,-150.0,7.654e-05,2]
[421201892,1777241432499,-300.0,7.654e-05,2]
[421201893,1777241432509,-149.32950004,7.654e-05,2]
[421201894,1777241432529,-447.67049996,7.654e-05,2]
[421201895,1777241432539,-275.0,7.654e-05,2]
[421201896,1777241432548,-1200.0,7.654e-05,2]
[421201897,1777241432562,-150.0,7.68e-05,2]
[421201898,1777241432571,-150.0,7.707e-05,2]
[421201899,1777241432582,-150.0,7.725e-05,2]
[421201900,1777241432591,-150.0,7.725e-05,2]
[421201901,1777241432601,-150.0,7.733e-05,2]
[421201902,1777241432610,-150.0,7.759e-05,2]
[421201903,1777241432977,-150.0,7.759e-05,2]
[421201904,1777241432988,-150.0,7.786e-05,2]
[421201905,1777241432999,-3400.0,7.8e-05,2]
[421201906,1777241433008,-150.0,7.812e-05,2]
[421201907,1777241433019,-4156.9115,7.82e-05,2]
[421201908,1777241433028,-6786.3412,7.82e-05,2]
[421201909,1777241433039,-98845.6329,7.82e-05,2]
[421201910,1777241433049,-150.0,7.839e-05,2]
[421201911,1777241433058,-500.0,7.858e-05,2]
[421201912,1777241433067,-150.0,7.865e-05,2]
[421201913,1777241433078,-250.0,7.868e-05,2]
[421201914,1777241433088,-151.0,7.887e-05,2]
[421201915,1777241433098,-500.0,7.889e-05,2]
[421201916,1777241433107,-213.1625919,7.889e-05,2]
[421201917,1777241433117,-500.0,7.889e-05,2]
[421201918,1777241433126,-438.59327238,7.889e-05,2]
[421201919,1777241433135,-500.0,7.889e-05,2]